bitfinex-derivatives/quotes_BTCF0:USTF0_20210104
["timestamp","ask_amount","ask_price","bid_price","bid_amount"]
[1609803606982,0.14275,31815.0,31786.0,0.1771]
[1609803608082,0.13632608,31813.0,31808.0,0.13632608]
[1609803608582,0.14275,31815.0,31808.0,0.13632608]
[1609803608982,0.14275,31815.0,31794.0,0.13379]
[1609803610486,0.13632608,31804.0,31801.0,0.13632608]
[1609803613889,0.69062608,31804.0,31801.0,0.13632608]
[1609803614491,0.13452,31807.0,31801.0,0.13632608]
[1609803614689,0.14275,31815.0,31801.0,0.13632608]
[1609803614888,0.573,31824.0,31801.0,0.13632608]
[1609803615090,0.2855,31824.0,31801.0,0.13632608]
[1609803615290,0.2855,31824.0,31801.0,0.26223608]
[1609803615692,0.2855,31824.0,31801.0,0.12591]
[1609803616592,0.13632608,31820.0,31819.0,0.13632608]
[1609803616793,0.2855,31824.0,31801.0,0.12591]
[1609803616992,0.9166,31824.0,31801.0,0.12591]
[1609803618596,0.9166,31824.0,31823.0,0.13632608]
[1609803618996,0.13632608,31831.0,31823.0,0.13632608]
[1609803619196,0.10248,31835.0,31823.0,0.13632608]
[1609803619598,0.56410529,31837.0,31823.0,0.13632608]
[1609803620599,0.56410529,31837.0,31836.0,0.13632608]
[1609803621198,0.67662701,31838.0,31830.0,0.15601]
[1609803621199,0.13632608,31842.0,31830.0,0.15601]
[1609803621798,5.2346,31843.0,31830.0,0.15601]
[1609803622800,5.2346,31843.0,31842.0,0.13632608]
[1609803622999,0.13632608,31850.0,31842.0,0.13632608]
[1609803624203,0.56746247,31852.0,31837.0,0.09721]
[1609803624602,0.56746247,31852.0,31830.0,0.15601]
[1609803624804,0.72829247,31852.0,31830.0,0.15601]
[1609803625203,0.16083,31852.0,31830.0,0.15601]
[1609803625502,0.16083,31852.0,31850.0,0.13632608]
[1609803626103,0.56742441,31854.0,31850.0,0.13632608]
[1609803627606,0.13632608,31852.0,31850.0,0.13632608]
[1609803627807,0.13632608,31852.0,31844.0,0.15554]
[1609803629311,3.7528,31855.0,31844.0,0.15554]
[1609803629910,3.7528,31855.0,31850.0,0.13632608]
[1609803630110,0.56741435,31857.0,31850.0,0.13632608]
[1609803630812,0.56741435,31857.0,31844.0,0.15554]
[1609803631011,0.56711441,31858.0,31844.0,0.15554]
[1609803631414,0.56711441,31858.0,31837.0,0.10505]
[1609803631615,0.56711441,31858.0,31830.0,0.15601]
[1609803631813,0.56711441,31858.0,31829.0,4.5614]
[1609803632013,0.56711441,31858.0,31853.0,0.13632608]
[1609803632817,3.6677,31857.0,31853.0,0.13632608]
[1609803633616,0.56683911,31860.0,31853.0,0.13632608]
[1609803633617,0.56805278,31858.0,31853.0,0.13632608]
[1609803634019,0.56805278,31858.0,31857.0,0.13632608]
[1609803635521,0.5674043,31865.0,31857.0,0.13632608]
[1609803635921,0.5674043,31865.0,31863.0,0.13632608]
[1609803636122,0.56741736,31871.0,31863.0,0.13632608]
[1609803636924,0.56743045,31870.0,31863.0,0.13632608]
[1609803637122,0.56743045,31870.0,31851.0,0.13902]
[1609803637523,0.12851,31870.0,31851.0,0.13902]
[1609803637922,0.12851,31870.0,31866.0,0.13632608]
[1609803638322,0.12851,31870.0,31851.0,0.13902]
[1609803638723,0.12851,31870.0,31844.0,0.13648]
[1609803638925,0.12851,31870.0,31819.0,0.11133]
[1609803639125,4.9787,31864.0,31810.0,4.5907]
[1609803639725,4.9787,31864.0,31816.0,1.82056144]
[1609803639924,4.9787,31864.0,31816.0,1.94566144]
[1609803640125,0.5665571,31862.0,31816.0,0.1251]
[1609803640326,0.6880071,31862.0,31816.0,0.1251]
[1609803641126,0.6880071,31862.0,31824.0,3.5322]
[1609803641527,0.6880071,31862.0,31824.0,3.63677]
[1609803641928,0.6880071,31862.0,31861.0,0.13632608]
[1609803642329,0.6880071,31862.0,31844.0,4.6958]
[1609803642530,0.5664977,31858.0,31844.0,4.6958]
[1609803644030,0.5664977,31858.0,31857.0,0.13632608]
[1609803645432,0.5664977,31858.0,31854.0,0.10422]
[1609803646031,0.5664977,31858.0,31857.0,0.13632608]
[1609803646832,0.5664977,31858.0,31842.0,0.15179]
[1609803647233,0.5664977,31858.0,31837.0,4.8544]
[1609803647933,0.5664977,31858.0,31857.0,0.13632608]
[1609803648533,0.5664977,31858.0,31843.0,0.14291]
[1609803650136,0.5664977,31858.0,31857.0,0.13632608]
[1609803651836,0.5664977,31858.0,31843.0,4.05631]
[1609803651837,0.09838,31861.0,31843.0,4.05631]
[1609803652036,0.12851,31870.0,31843.0,0.14291]
[1609803652335,0.12851,31870.0,31853.0,5.1988]
[1609803652939,0.12851,31870.0,31867.0,0.13632608]
[1609803656241,0.12851,31870.0,31866.0,4.4511]
[1609803657043,0.13632608,31867.0,31866.0,4.4511]
[1609803657244,0.12851,31870.0,31866.0,4.4511]
[1609803662950,0.12851,31870.0,31867.0,0.13632608]
[1609803663950,0.12851,31870.0,31851.0,0.12721]
[1609803664150,0.58239763,31895.0,31843.0,0.14291]
[1609803664350,0.58239763,31895.0,31868.0,4.3925]
[1609803664552,0.02189945,31900.0,31868.0,4.3925]
[1609803664951,0.02189945,31900.0,31891.0,0.13632608]
[1609803665553,0.02189945,31900.0,31877.0,0.15081]
[1609803665752,0.12233945,31900.0,31877.0,0.15081]
[1609803666755,0.12233945,31900.0,31864.0,0.15893]
[1609803666967,0.10233945,31900.0,31864.0,0.15893]
[1609803667153,0.10233945,31900.0,31878.0,0.13632608]
[1609803667854,4.0097,31889.0,31864.0,0.15893]
[1609803668054,4.11196,31889.0,31864.0,0.15893]
[1609803668456,0.10226,31889.0,31851.0,0.10997]
[1609803668655,4.9111,31876.0,31851.0,0.10997]
[1609803668857,5.06721,31876.0,31851.0,0.10997]
[1609803669258,5.06721,31876.0,31859.0,0.13632608]
[1609803669655,0.15611,31876.0,31859.0,0.13632608]
[1609803670658,0.15611,31876.0,31848.0,0.14341]
[1609803671161,0.15611,31876.0,31852.0,0.13632608]
[1609803671562,0.15611,31876.0,31848.0,0.14341]
[1609803673662,0.15611,31876.0,31859.0,0.13632608]
[1609803673960,0.2851,31888.0,31859.0,0.13632608]
[1609803674361,0.2851,31888.0,31848.0,0.14341]
[1609803674562,0.2851,31888.0,31847.0,4.398]
[1609803675963,0.2851,31888.0,31862.0,0.13632608]
[1609803676563,0.8884,31888.0,31862.0,0.13632608]
[1609803677374,0.2851,31888.0,31853.0,0.11551]
[1609803677564,3.7999,31880.0,31853.0,0.11551]
[1609803677764,3.95089,31880.0,31853.0,0.11551]
[1609803678768,3.95089,31880.0,31843.0,1.78979363]
[1609803679986,0.13632608,31860.0,31856.0,0.13632608]
[1609803680370,0.13632608,31860.0,31843.0,1.78979363]
[1609803681369,0.11,31871.0,31843.0,1.78979363]
[1609803681566,0.11,31871.0,31843.0,1.92864363]
[1609803681968,0.11,31871.0,31858.0,0.13632608]
[1609803683970,0.11,31871.0,31864.0,0.13632608]
[1609803685168,0.11,31871.0,31852.0,0.09854]
[1609803685369,0.15099,31880.0,31852.0,0.09854]
[1609803685568,0.11781,31871.0,31852.0,0.09854]
[1609803685870,0.11781,31871.0,31862.0,0.13632608]
[1609803686271,0.11781,31871.0,31852.0,0.09854]
[1609803687172,0.11781,31871.0,31843.0,0.13885]
[1609803687573,0.11781,31871.0,31841.0,0.1771]
[1609803687975,0.11781,31871.0,31853.0,0.13632608]
[1609803689576,0.11781,31871.0,31845.0,0.15785]
[1609803690078,0.11781,31871.0,31860.0,0.13632608]
[1609803690679,0.58785521,31875.0,31847.0,4.1795]
[1609803692084,0.58785521,31875.0,31858.0,0.13632608]
[1609803693784,0.58785521,31875.0,31847.0,4.1795]
[1609803693987,0.13509,31875.0,31847.0,4.1795]
[1609803694185,0.13509,31875.0,31860.0,0.13632608]
[1609803696188,0.13632608,31861.0,31860.0,0.13632608]
[1609803696388,0.13632608,31861.0,31847.0,4.1795]
[1609803697191,0.13632608,31861.0,31845.0,0.15785]
[1609803697589,0.13632608,31861.0,31841.0,0.1771]
[1609803697790,0.11281,31864.0,31841.0,0.1771]
[1609803697990,0.11281,31864.0,31841.0,0.29668]
[1609803698191,0.13509,31875.0,31841.0,0.29668]
[1609803698390,0.13509,31875.0,31845.0,4.5236]
[1609803699090,0.01913671,31877.0,31845.0,4.5236]
[1609803700195,0.01915981,31880.0,31845.0,4.5236]
[1609803700692,0.01915981,31880.0,31872.0,0.13632608]
[1609803701093,0.01915981,31880.0,31872.0,5.34882608]
[1609803701295,0.01917965,31884.0,31872.0,5.34882608]
[1609803701695,0.01917965,31884.0,31872.0,5.2125]
[1609803701897,0.2851,31888.0,31872.0,5.2125]
[1609803702597,0.2851,31888.0,31861.0,0.1084]
[1609803702800,0.2851,31888.0,31876.0,4.4434]
[1609803703000,0.2851,31888.0,31885.0,0.13632608]
[1609803704811,0.10226,31889.0,31885.0,0.13632608]
[1609803705009,0.13632608,31886.0,31885.0,0.13632608]
[1609803705208,0.28033608,31886.0,31885.0,0.13632608]
[1609803707108,0.28033608,31886.0,31876.0,4.4434]
[1609803707508,0.28033608,31886.0,31861.0,0.1084]
[1609803707709,0.28033608,31886.0,31855.0,4.9312]
[1609803707912,0.28033608,31886.0,31855.0,6.80136203]
[1609803708309,0.28033608,31886.0,31855.0,1.87016203]
[1609803708510,0.14401,31886.0,31867.0,3.5877]
[1609803709011,0.14401,31886.0,31885.0,0.13632608]
[1609803709610,0.14401,31886.0,31867.0,3.5877]
[1609803710512,0.13632608,31888.0,31867.0,3.5877]
[1609803711012,0.58916699,31899.0,31885.0,0.13632608]
[1609803712115,0.01918324,31898.0,31885.0,0.13632608]
[1609803712314,0.01918324,31898.0,31867.0,3.5877]
[1609803712516,0.01918303,31896.0,31867.0,3.5877]
[1609803713019,0.01918303,31896.0,31885.0,0.13632608]
[1609803713217,0.589158,31898.0,31885.0,0.13632608]
[1609803714019,0.78627174,31900.0,31885.0,0.13632608]
[1609803714020,0.58916383,31899.0,31885.0,0.13632608]
[1609803714419,0.58916868,31898.0,31885.0,0.13632608]
[1609803715118,0.01918312,31898.0,31867.0,3.5877]
[1609803715521,0.69132698,31900.0,31867.0,3.5877]
[1609803715718,0.69132698,31900.0,31887.0,0.13632608]
[1609803716118,0.12151667,31900.0,31887.0,0.13632608]
[1609803716417,0.12151667,31900.0,31871.0,3.6067]
[1609803717123,0.10233945,31900.0,31871.0,3.6067]
[1609803717620,0.10233945,31900.0,31890.0,0.13632608]
[1609803719523,0.00189945,31900.0,31890.0,0.13632608]
[1609803719721,0.00189945,31900.0,31899.0,0.13632608]
[1609803720922,0.00189945,31900.0,31899.0,0.69702608]
[1609803721825,0.00189945,31900.0,31899.0,0.5607]
[1609803723625,0.00189945,31900.0,31899.0,0.69702608]
[1609803726029,0.00189945,31900.0,31899.0,0.5607]
[1609803726630,0.00189945,31900.0,31896.0,0.11076]
[1609803726832,0.00189945,31900.0,31888.0,0.10408]
[1609803727034,0.00189945,31900.0,31881.0,0.15643]
[1609803727229,0.00189945,31900.0,31876.0,3.7484]
[1609803727731,0.00189945,31900.0,31891.0,0.13632608]
[1609803728132,0.00189945,31900.0,31882.0,0.15363]
[1609803728332,0.00189945,31900.0,31885.0,4.117]
[1609803729734,0.00189945,31900.0,31887.0,0.13632608]
[1609803731736,0.00189945,31900.0,31886.0,4.4448]
[1609803732238,0.00189945,31900.0,31899.0,0.13632608]
[1609803732837,0.00189945,31900.0,31891.0,0.12736]
[1609803734339,0.00189945,31900.0,31899.0,0.13632608]
[1609803738644,0.12221,31913.0,31899.0,0.12365]
[1609803738843,0.58429605,31922.0,31901.0,4.8322]
[1609803739644,0.58429605,31922.0,31899.0,0.12365]
[1609803739844,0.11033,31925.0,31899.0,0.12365]
[1609803740344,0.11033,31925.0,31913.0,0.13632608]
[1609803740943,0.11033,31925.0,31899.0,0.12365]
[1609803742345,0.11033,31925.0,31899.0,0.25997608]
[1609803742346,0.13632608,31900.0,31899.0,0.25997608]
[1609803742546,0.13632608,31900.0,31899.0,0.12365]
[1609803742745,0.13632608,31900.0,31891.0,0.12736]
[1609803742946,0.13632608,31900.0,31884.0,3.7747]
[1609803743147,0.13632608,31900.0,31882.0,0.15363]
[1609803743347,0.13632608,31900.0,31875.0,1.83538324]
[1609803743747,0.13632608,31900.0,31872.0,2.17933626]
[1609803743748,0.13632608,31900.0,31872.0,0.1771]
[1609803744148,0.14772,31903.0,31872.0,0.1771]
[1609803744347,0.14772,31903.0,31872.0,0.30545]
[1609803744548,0.14772,31903.0,31891.0,0.13632608]
[1609803745547,0.14772,31903.0,31881.0,0.11251]
[1609803746649,0.14772,31903.0,31894.0,0.13632608]
[1609803748349,0.2741,31910.0,31894.0,0.13632608]
[1609803748549,0.15579,31911.0,31909.0,0.13632608]
[1609803748750,0.13632608,31914.0,31909.0,0.13632608]
[1609803749150,0.01904055,31922.0,31909.0,0.13632608]
[1609803749351,0.01909754,31927.0,31909.0,0.13632608]
[1609803750550,0.01909754,31927.0,31919.0,0.13632608]
[1609803750951,0.01909754,31927.0,31907.0,0.13906]
[1609803751153,0.17922754,31927.0,31907.0,0.13906]
[1609803751352,0.16013,31927.0,31907.0,0.13906]
[1609803752659,0.13632608,31908.0,31907.0,0.13906]
[1609803753057,0.13241,31912.0,31889.0,3.8894]
[1609803753257,0.13241,31912.0,31888.0,0.12954]
[1609803753459,0.13241,31912.0,30805.0,0.98860473]
[1609803753658,0.13241,31912.0,31889.0,4.0417]
[1609803753859,0.13241,31912.0,31889.0,4.18648]
[1609803754057,0.1041,31919.0,31889.0,4.18648]
[1609803754660,0.1041,31919.0,31916.0,0.13632608]
[1609803754859,0.1041,31919.0,31901.0,0.14057]
[1609803756662,0.1041,31919.0,31889.0,0.14478]
[1609803756865,0.13632608,31902.0,31891.0,0.13632608]
[1609803757073,0.25259608,31902.0,31891.0,0.13632608]
[1609803757265,0.11627,31902.0,31889.0,0.14478]
[1609803757466,0.11627,31902.0,31881.0,0.11251]
[1609803757673,0.11627,31902.0,31880.0,1.84102092]
[1609803758268,0.11627,31902.0,31871.0,1.83680858]
[1609803758768,0.11627,31902.0,31884.0,0.13632608]
[1609803759366,0.11627,31902.0,31871.0,0.09767]
[1609803760767,0.11627,31902.0,31889.0,0.13632608]
[1609803762169,0.58641936,31915.0,31889.0,0.13632608]
[1609803762770,0.01912963,31912.0,31889.0,0.13632608]
[1609803762972,0.12192963,31912.0,31883.0,5.0569]
[1609803763371,0.1028,31912.0,31883.0,5.0569]
[1609803763570,0.1028,31912.0,31897.0,0.13632608]
[1609803765472,0.1028,31912.0,31902.0,0.13632608]
[1609803767474,0.13632608,31903.0,31902.0,0.13632608]
[1609803776192,0.1028,31912.0,31902.0,0.13632608]
[1609803776393,0.1041,31919.0,31902.0,0.13632608]
[1609803776592,0.01916139,31924.0,31902.0,0.13632608]
[1609803777593,0.01916139,31924.0,31921.0,0.13632608]
[1609803778694,0.01916139,31924.0,31905.0,4.7885]
[1609803779295,0.16013,31927.0,31905.0,4.7885]
[1609803779494,0.01919405,31928.0,31905.0,4.7885]
[1609803779695,0.86831042,31929.0,31923.0,0.13632608]
[1609803779696,0.298,31929.0,31923.0,0.13632608]
[1609803781594,0.13632608,31924.0,31923.0,0.13632608]
[1609803781994,0.24063608,31924.0,31923.0,0.13632608]
[1609803782596,0.24063608,31924.0,31905.0,4.7885]
[1609803782796,0.24063608,31924.0,31896.0,2.02371275]
[1609803783196,0.10431,31924.0,31896.0,2.02371275]
[1609803783700,0.13632608,31918.0,31917.0,0.13632608]
[1609803784097,0.13632608,31918.0,31896.0,2.02371275]
[1609803785398,0.10431,31924.0,31896.0,2.02371275]
[1609803785999,0.10431,31924.0,31909.0,0.13632608]
[1609803786402,0.10431,31924.0,31896.0,2.02371275]
[1609803786802,0.84771,31924.0,31896.0,2.02371275]
[1609803787003,0.88133,31924.0,31896.0,1.87848275]
[1609803788003,0.13632608,31897.0,31896.0,2.01480883]
[1609803788204,0.26399608,31897.0,31896.0,2.01480883]
[1609803788604,0.12767,31897.0,31896.0,1.87848275]
[1609803789305,0.13997,31905.0,31896.0,1.87848275]
[1609803790407,0.13632608,31920.0,31904.0,0.13632608]
[1609803790807,0.13793,31924.0,31904.0,0.13632608]
[1609803792109,0.298,31929.0,31904.0,0.13632608]
[1609803792310,0.298,31929.0,31921.0,0.13632608]
[1609803793010,0.298,31929.0,31900.0,0.09787]
[1609803793210,0.39919,31929.0,31900.0,0.09787]
[1609803795819,0.41838186,31929.0,31900.0,0.09787]
[1609803796622,0.01919199,31928.0,31910.0,0.13632608]
[1609803797421,0.61729199,31928.0,31900.0,0.09787]
[1609803797619,0.61729199,31928.0,31894.0,1.92201206]
[1609803797821,0.01919199,31928.0,31894.0,1.92201206]
[1609803798025,3.8764,31923.0,31894.0,1.92201206]
[1609803798622,0.01919501,31918.0,31884.0,1.92087801]
[1609803798823,0.17243501,31918.0,31884.0,1.92087801]
[1609803799423,5.0628,31904.0,31880.0,1.92354552]
[1609803799622,5.18209,31904.0,31880.0,1.92354552]
[1609803800723,0.13632608,31881.0,31880.0,1.92354552]
[1609803800923,0.29146608,31881.0,31880.0,1.92354552]
[1609803801327,0.29146608,31881.0,31871.0,2.05895573]
[1609803802528,0.29146608,31881.0,31871.0,0.13632608]
[1609803802928,0.29146608,31881.0,31880.0,0.13632608]
[1609803803330,0.29146608,31881.0,31868.0,0.1771]
[1609803804832,0.29146608,31881.0,31880.0,0.13632608]
[1609803805431,0.29146608,31881.0,31868.0,0.1771]
[1609803806933,0.13632608,31875.0,31868.0,0.1771]
[1609803807135,3.7838,31880.0,31866.0,1.93183914]
[1609803808536,3.7838,31880.0,31859.0,0.16078]
[1609803808537,3.7838,31880.0,31867.0,1.9300661]
[1609803809036,0.13632608,31870.0,31867.0,1.9300661]
[1609803809437,0.13632608,31870.0,31864.0,2.24185273]
[1609803809438,0.13632608,31870.0,31864.0,0.13632608]
[1609803811241,0.12228,31871.0,31855.0,1.92863462]
[1609803811739,0.13632608,31870.0,31866.0,0.13632608]
[1609803812542,0.13632608,31870.0,31855.0,1.92863462]
[1609803813744,0.12228,31871.0,31869.0,0.15730776]
[1609803814345,0.13632608,31878.0,31869.0,0.15730776]
[1609803815748,0.13632608,31878.0,31874.0,0.13632608]
[1609803816850,0.2765,31879.0,31869.0,0.02098168]
[1609803818255,0.13632608,31870.0,31869.0,0.02098168]
[1609803819254,0.14838,31874.0,31869.0,0.02098168]
[1609803820153,0.14838,31874.0,31873.0,0.13632608]
[1609803820354,0.14838,31874.0,31869.0,0.02098168]
[1609803822257,0.13632608,31870.0,31869.0,0.02098168]
[1609803825369,0.2757,31895.0,31869.0,0.02098168]
[1609803825569,0.2757,31895.0,31869.0,0.12356168]
[1609803826369,0.2757,31895.0,31889.0,0.13632608]
[1609803826569,0.00961817,31898.0,31889.0,0.24510608]
[1609803826769,0.00961817,31898.0,31889.0,0.10878]
[1609803828175,0.00961817,31898.0,31897.0,0.13632608]
[1609803828373,0.00961817,31898.0,31897.0,0.25141608]
[1609803828974,0.00961035,31901.0,31897.0,0.25141608]
[1609803829976,0.13632608,31906.0,31897.0,0.25141608]
[1609803830279,0.2805,31919.0,31902.0,0.13632608]
[1609803830485,0.29863581,31931.0,31902.0,0.13632608]
[1609803830685,0.02863429,31930.0,31897.0,3.71389]
[1609803830876,0.43946429,31930.0,31897.0,3.71389]
[1609803831378,0.41083,31930.0,31897.0,0.11509]
[1609803831577,4.3614,31927.0,31897.0,0.11509]
[1609803832277,4.3614,31927.0,31911.0,0.13632608]
[1609803832677,4.3614,31927.0,31897.0,0.11509]
[1609803833478,4.3614,31927.0,31889.0,0.10878]
[1609803833879,4.3614,31927.0,31881.0,1.92182587]
[1609803834680,4.3614,31927.0,31900.0,0.13632608]
[1609803834881,0.41083,31930.0,31900.0,0.24556608]
[1609803835883,1.05003,31930.0,31900.0,0.24556608]
[1609803836083,3.5941,31926.0,31900.0,0.10924]
[1609803836283,3.5941,31926.0,31892.0,0.15452]
[1609803836883,0.13632608,31893.0,31892.0,0.15452]
[1609803837784,0.14121,31904.0,31892.0,0.15452]
[1609803838788,0.14121,31904.0,31894.0,0.13632608]
[1609803838986,0.14121,31904.0,31892.0,0.15452]
[1609803840788,0.14121,31904.0,31894.0,0.13632608]
[1609803840993,0.14121,31904.0,31892.0,0.15452]
[1609803841197,0.11277,31913.0,31880.0,1.92215914]
[1609803841390,0.11277,31913.0,31880.0,2.06404914]
[1609803841588,0.0942,31912.0,31880.0,2.06404914]
[1609803841788,0.11277,31913.0,31880.0,2.06404914]
[1609803841989,0.2838,31911.0,31880.0,2.06404914]
[1609803842791,0.2838,31911.0,31880.0,0.14189]
[1609803843492,0.13632608,31908.0,31907.0,0.13632608]
[1609803844094,0.2838,31911.0,31880.0,0.14189]
[1609803845594,0.2838,31911.0,31897.0,0.13632608]
[1609803845795,0.2838,31911.0,31897.0,0.29517608]
[1609803846397,0.2838,31911.0,31897.0,4.44915]
[1609803847997,0.2838,31911.0,31907.0,0.13632608]
[1609803849499,0.2838,31911.0,31897.0,4.2903]
[1609803850401,0.2838,31911.0,31910.0,0.13632608]
[1609803851202,0.2838,31911.0,31890.0,0.15744]
[1609803852502,0.2838,31911.0,31906.0,0.13632608]
[1609803854505,0.13632608,31907.0,31906.0,0.13632608]
[1609803855105,0.2838,31911.0,31895.0,5.1296]
[1609803856407,0.2838,31911.0,31890.0,0.15744]
[1609803856608,0.2838,31911.0,31904.0,0.13632608]
[1609803857208,0.2838,31911.0,31881.0,1.95833909]
[1609803857710,0.2838,31911.0,31882.0,1.96460907]
[1609803857910,0.2838,31911.0,31887.0,4.1774]
[1609803858710,0.2838,31911.0,31882.0,1.96460907]
[1609803858711,0.2838,31911.0,31904.0,0.13632608]
[1609803858910,0.2838,31911.0,31882.0,1.96460907]
[1609803859513,0.2838,31911.0,31879.0,1.9766261]
[1609803860614,0.13632608,31885.0,31884.0,0.13632608]
[1609803861015,0.15194,31895.0,31879.0,1.9766261]
[1609803862916,0.15194,31895.0,31880.0,0.14189]
[1609803863116,0.13632608,31881.0,31879.0,1.9766261]
[1609803863316,0.13632608,31881.0,31879.0,1.3988261]
[1609803864521,0.12281,31885.0,31879.0,2.61e-05]
[1609803865121,0.13632608,31880.0,31871.0,2.15898253]
[1609803865720,0.12281,31885.0,31869.0,0.02098168]
[1609803867124,0.12281,31885.0,31873.0,0.13632608]
[1609803867720,0.15194,31895.0,31873.0,0.13632608]
[1609803867921,0.01359907,31902.0,31874.0,0.6766]
[1609803868122,0.01359907,31902.0,31874.0,0.8537]
[1609803869121,0.13632608,31884.0,31882.0,0.13632608]
[1609803870324,0.13632608,31884.0,31874.0,0.6766]
[1609803871224,0.13632608,31875.0,31874.0,0.6766]
[1609803871424,0.13632608,31875.0,31869.0,0.02098168]
[1609803872826,0.12487,31880.0,31869.0,0.02098168]
[1609803873425,0.13632608,31870.0,31869.0,0.02098168]
[1609803875625,0.12487,31880.0,31869.0,0.02098168]
[1609803876529,0.10911,31887.0,31869.0,0.02098168]
[1609803876729,4.731,31892.0,31869.0,0.02098168]
[1609803877332,0.13632608,31870.0,31869.0,0.15730776]
[1609803878632,0.13632608,31870.0,31869.0,0.02098168]
[1609803879633,0.10781,31874.0,31869.0,0.02098168]
[1609803881336,0.13632608,31870.0,31869.0,0.02098168]
[1609803883438,0.13632608,31870.0,31869.0,0.15730776]
[1609803884138,0.13632608,31870.0,31869.0,0.02098168]
[1609803887745,0.10781,31874.0,31869.0,0.02098168]
[1609803887946,4.443,31880.0,31869.0,0.02098168]
[1609803889346,0.09711,31881.0,31873.0,0.13632608]
[1609803889746,0.00397554,31894.0,31873.0,0.13632608]
[1609803890149,0.01363591,31895.0,31873.0,0.13632608]
[1609803891347,0.13632608,31875.0,31873.0,0.13632608]
[1609803894461,0.15348,31882.0,31870.0,0.11836]
[1609803895153,0.15348,31882.0,31869.0,0.02098168]
[1609803895353,0.15348,31882.0,31870.0,0.12801]
[1609803895555,0.1549,31889.0,31870.0,0.12801]
[1609803896455,0.2989,31897.0,31870.0,0.12801]
[1609803897560,0.2989,31897.0,31875.0,0.13632608]
[1609803897760,0.2989,31897.0,31870.0,0.12801]
[1609803897960,0.7358,31896.0,31870.0,0.12801]
[1609803899463,0.7358,31896.0,31879.0,0.13632608]
[1609803899963,0.7358,31896.0,31870.0,0.12801]
[1609803900163,0.45952,31897.0,31870.0,0.12801]
[1609803900364,4.5577,31893.0,31869.0,0.02098168]
[1609803901464,0.13632608,31870.0,31869.0,0.02098168]
[1609803901864,0.10931,31884.0,31869.0,0.02098168]
[1609803903267,0.10931,31884.0,31869.0,0.14676168]
[1609803903771,0.10931,31884.0,31882.0,0.13632608]
[1609803904068,0.10931,31884.0,31869.0,0.14676168]
[1609803905777,0.10931,31884.0,31874.0,0.13632608]
[1609803906674,4.5577,31893.0,31874.0,0.13632608]
[1609803907276,4.5577,31893.0,31869.0,0.14676168]
[1609803907875,0.13632608,31870.0,31869.0,0.14676168]
[1609803911079,0.12986,31881.0,31869.0,0.14676168]
[1609803911878,0.12986,31881.0,31871.0,0.13632608]
[1609803913883,0.13632608,31872.0,31871.0,0.13632608]
[1609803916387,0.13632608,31872.0,31869.0,0.02098168]
[1609803930709,5.2494,31870.0,31869.0,0.02098168]
[1609803931310,5.2494,31870.0,31866.0,1.22262865]
[1609803931511,0.13632608,31872.0,31866.0,1.22262865]
[1609803931711,5.1482,31867.0,31866.0,1.22262865]
[1609803932311,5.28452608,31867.0,31866.0,1.22262865]
[1609803933311,5.28452608,31867.0,31842.0,3.30567634]
[1609803933312,5.28452608,31867.0,31856.0,2.22727556]
[1609803934313,0.01373201,31865.0,31859.0,0.13632608]
[1609803934715,0.00400335,31871.0,31859.0,0.13632608]
[1609803935416,0.15815,31873.0,31859.0,0.13632608]
[1609803936216,0.15815,31873.0,31863.0,0.13632608]
[1609803936616,0.00400315,31878.0,31863.0,0.13632608]
[1609803936817,0.00400315,31878.0,31855.0,0.14817]
[1609803938318,0.00400315,31878.0,31868.0,0.13632608]
[1609803938718,0.00400258,31879.0,31868.0,0.13632608]
[1609803940219,0.00400258,31879.0,31874.0,0.13632608]
[1609803940721,0.52247014,31883.0,31874.0,0.13632608]
[1609803940922,0.52247014,31883.0,31875.0,4.5781]
[1609803941123,0.52247014,31883.0,31875.0,4.7012]
[1609803942324,0.52247014,31883.0,31882.0,0.13632608]
[1609803942525,0.5106958,31885.0,31882.0,0.28054608]
[1609803945430,0.5106958,31885.0,31882.0,0.14422]
[1609803947536,0.5106958,31885.0,31875.0,0.1231]
[1609803947738,0.5106958,31885.0,31867.0,4.8319]
[1609803948236,0.5106958,31885.0,31865.0,0.13216]
[1609803948736,0.5106958,31885.0,31875.0,4.2772]
[1609803948937,0.5106958,31885.0,31884.0,0.13632608]
[1609803949136,0.5106958,31885.0,31884.0,0.28378608]
[1609803949337,0.95214443,31896.0,31884.0,0.92268608]
[1609803949938,0.2862,31922.0,31884.0,0.92268608]
[1609803950740,0.45907828,31921.0,31884.0,0.78636]
[1609803950939,0.59193828,31921.0,31884.0,0.78636]
[1609803951140,0.59193828,31921.0,31884.0,0.14746]
[1609803951341,0.13632608,31886.0,31884.0,0.14746]
[1609803951542,0.13427,31898.0,31884.0,0.14746]
[1609803952340,0.75417,31898.0,31884.0,0.14746]
[1609803953341,0.13632608,31885.0,31884.0,0.14746]
[1609803954144,0.13632608,31885.0,31881.0,5.37092608]
[1609803956145,0.13427,31898.0,31881.0,5.37092608]
[1609803956744,0.94848743,31917.0,31881.0,5.37092608]
[1609803957345,0.13632608,31898.0,31897.0,0.13632608]
[1609803957547,0.12924,31904.0,31897.0,0.13632608]
[1609803957946,0.12924,31904.0,31894.0,3.7999]
[1609803959450,0.26556608,31904.0,31903.0,0.13632608]
[1609803959849,0.26556608,31904.0,31889.0,0.11437]
[1609803961351,0.12924,31904.0,31897.0,0.13632608]
[1609803962250,0.13286,31921.0,31897.0,0.13632608]
[1609803962450,1.23411776,31922.0,31897.0,0.13632608]
[1609803962650,0.94785165,31921.0,31897.0,0.13632608]
[1609803963050,1.07781165,31921.0,31897.0,0.13632608]
[1609803963251,1.07781165,31921.0,31894.0,4.522]
[1609803963252,0.58900993,31921.0,31894.0,4.522]
[1609803963451,0.58900993,31921.0,31889.0,0.11437]
[1609803963651,0.58900993,31921.0,31899.0,4.955]
[1609803963854,0.12996,31921.0,31899.0,4.955]
[1609803965457,0.12996,31921.0,31911.0,0.13632608]
[1609803967356,0.13632608,31912.0,31911.0,0.13632608]
[1609803967556,0.15646,31913.0,31911.0,0.13632608]
[1609803967757,0.15646,31913.0,31911.0,4.41922608]
[1609803968555,0.15646,31913.0,31911.0,0.13632608]
[1609803968756,0.12996,31921.0,31911.0,0.13632608]
[1609803968955,0.67998195,31926.0,31911.0,0.13632608]
[1609803969258,0.2874,31930.0,31911.0,0.13632608]
[1609803969456,0.2874,31930.0,31921.0,0.13632608]